bitfinex/quotes_ETHUSD_20250216
["timestamp","ask_amount","ask_price","bid_price","bid_amount"]
[1739675417349,6.57e-06,2694.0,2693.9,0.07937761]
[1739675417753,6.57e-06,2694.0,2693.8,3.71222]
[1739675417954,6.57e-06,2694.0,2693.9,0.07937761]
[1739675424255,6.57e-06,2694.0,2693.7,5.43135954]
[1739675424456,6.57e-06,2694.0,2693.9,0.07937761]
[1739675424679,6.57e-06,2694.0,2693.8,3.79162999]
[1739675424843,6.57e-06,2694.0,2693.9,0.07937761]
[1739675426198,6.57e-06,2694.0,2693.7,9.14363954]
[1739675426395,6.57e-06,2694.0,2693.9,0.07937361]
[1739675426701,6.57e-06,2694.0,2693.7,9.14356954]
[1739675427000,6.57e-06,2694.0,2693.8,0.07943599]
[1739675427370,6.57e-06,2694.0,2693.7,9.14356954]
[1739675427555,6.57e-06,2694.0,2693.9,0.07937361]
[1739675428010,6.57e-06,2694.0,2693.7,5.43128954]
[1739675428303,6.57e-06,2694.0,2693.9,0.07937361]
[1739675428464,6.57e-06,2694.0,2693.8,0.07943599]
[1739675428702,6.57e-06,2694.0,2693.9,0.07937361]
[1739675432301,6.57e-06,2694.0,2693.9,0.12030587]
[1739675432725,6.57e-06,2694.0,2693.7,5.43127954]
[1739675433019,6.57e-06,2694.0,2693.8,0.12036977]
[1739675433467,6.57e-06,2694.0,2693.7,5.43127954]
[1739675433665,4.98639623,2694.0,2693.8,0.12036977]
[1739675434006,0.8271,2693.9,2693.6,0.00556875]
[1739675434169,3.71222,2693.8,2693.6,0.00556875]
[1739675436770,3.71236,2693.7,2693.6,0.00556875]
[1739675442709,4.53946,2693.7,2693.6,0.12622774]
[1739675442888,9.06452895,2693.7,2693.6,0.00556875]
[1739675444741,14.34452895,2693.7,2693.6,0.00556875]
[1739675445250,14.89452895,2693.7,2693.6,8.75e-06]
[1739675447245,15.65527698,2693.7,2693.6,8.75e-06]
[1739675452078,15.84213975,2693.7,2693.6,8.75e-06]
[1739675453372,18.07113975,2693.7,2693.6,8.75e-06]
[1739675458722,18.33413975,2693.7,2693.6,8.75e-06]
[1739675465412,16.10513975,2693.7,2693.6,8.75e-06]
[1739675465615,11.99236,2693.7,2693.6,8.75e-06]
[1739675465905,8.99236,2693.7,2693.6,8.75e-06]
[1739675466243,11.99236,2693.7,2693.6,8.75e-06]
[1739675466504,11.99236,2693.7,2693.6,0.11747581]
[1739675466712,11.99236,2693.7,2693.6,8.75e-06]
[1739675467012,11.99236,2693.7,2693.6,0.11747581]
[1739675467013,11.986981,2693.7,2693.6,0.11747581]
[1739675467176,11.986981,2693.7,2693.6,8.75e-06]
[1739675467516,11.986981,2693.7,2693.6,0.9013152]
[1739675467517,5.28,2693.7,2693.6,0.9013152]
[1739675467686,5.28,2693.7,2693.6,0.78390875]
[1739675467886,5.28,2693.7,2693.6,0.90128289]
[1739675471751,3.71222,2693.8,2693.6,0.90128289]
[1739675473332,6.57e-06,2694.0,2693.6,0.90128289]
[1739675473534,6.57e-06,2694.0,2693.7,0.26202924]
[1739675473702,6.57e-06,2694.0,2693.8,0.7839]
[1739675473903,6.57e-06,2694.0,2693.8,0.90114511]
[1739675486095,6.57e-06,2694.0,2693.8,4.61334511]
[1739675488676,6.57e-06,2694.0,2693.8,0.90114511]
[1739675488835,6.57e-06,2694.0,2693.8,1.56061137]
[1739675493385,6.57e-06,2694.0,2693.8,5.27276137]
[1739675493684,6.57e-06,2694.0,2693.8,1.56061137]
[1739675501555,6.57e-06,2694.0,2693.8,5.27275137]
[1739675502554,6.57e-06,2694.0,2693.8,1.56061137]
[1739675502923,6.57e-06,2694.0,2693.8,5.27282137]
[1739675503124,6.57e-06,2694.0,2693.9,4.80870402]
[1739675503307,6.57e-06,2694.0,2693.9,7.32113333]
[1739675503506,6.57e-06,2694.0,2693.9,7.4005932]
[1739675517590,6.57e-06,2694.0,2693.9,0.11657964]
[1739675518702,6.57e-06,2694.0,2693.9,3.82866964]
[1739675518994,6.57e-06,2694.0,2693.9,5.54767918]
[1739675519175,6.57e-06,2694.0,2693.9,1.83558918]
[1739675519383,6.57e-06,2694.0,2693.9,0.11657964]
[1739675521383,6.57e-06,2694.0,2693.9,3.82866964]
[1739675522089,6.57e-06,2694.0,2693.9,0.11657964]
[1739675523452,4.92111623,2694.0,2693.9,0.11657964]
[1739675523655,0.75660657,2694.0,2693.6,8.75e-06]
[1739675523852,3.7121,2693.9,2693.6,8.75e-06]
[1739675524464,0.7566,2693.8,2693.6,8.75e-06]
[1739675524790,4.46883,2693.8,2693.6,8.75e-06]
[1739675525085,4.46896,2693.7,2693.6,8.75e-06]
[1739675532591,0.7566,2693.7,2693.6,8.75e-06]
[1739675532787,0.7566,2693.7,2693.6,0.1127554]
[1739675545708,4.5318,2692.8,2692.7,0.00557061]
[1739675545919,18.69009692,2692.8,2692.7,0.00557061]
[1739675549597,22.89317622,2692.8,2692.7,6.1e-07]
[1739675554633,22.89317622,2692.8,2692.4,1.84e-06]
[1739675554634,7.47902,2692.5,2692.4,1.84e-06]
[1739675555602,11.0320993,2692.5,2692.4,1.84e-06]
[1739675555803,11.88350873,2692.5,2692.4,1.84e-06]
[1739675556439,12.53350873,2692.5,2692.4,1.84e-06]
[1739675557606,17.81350873,2692.5,2692.4,1.84e-06]
[1739675559841,21.72250873,2692.5,2692.4,1.84e-06]
[1739675560046,17.81350873,2692.5,2692.4,1.84e-06]
[1739675569591,15.98357991,2692.5,2692.4,1.84e-06]
[1739675571369,15.97689471,2692.5,2692.4,1.84e-06]
[1739675576989,7.46443,2692.2,2692.1,0.00557185]
[1739675577175,14.46758048,2692.2,2692.1,0.00557185]
[1739675580623,14.46758048,2692.2,2692.1,0.00557185]
[1739675582043,14.46758048,2692.2,2692.1,1.85e-06]
[1739675582388,13.71758048,2692.2,2692.1,1.85e-06]
[1739675583130,14.45329757,2692.2,2692.1,1.85e-06]
[1739675583428,15.304707,2692.2,2692.1,1.85e-06]
[1739675584686,15.48785588,2692.2,2692.1,1.85e-06]
[1739675588128,16.13785588,2692.2,2692.1,1.85e-06]
[1739675590133,20.04685588,2692.2,2692.1,1.85e-06]
[1739675590341,16.13785588,2692.2,2692.1,1.85e-06]
[1739675606782,12.17757888,2692.2,2692.1,1.85e-06]
[1739675607391,13.90072936,2692.2,2692.1,1.85e-06]
[1739675610896,12.17757888,2692.2,2692.1,1.85e-06]
[1739675612592,11.99443,2692.2,2692.1,1.85e-06]
[1739675612908,5.28,2692.2,2692.1,0.75010185]
[1739675613390,5.28,2692.2,2692.1,1.45631465]
[1739675613797,1.3855688,2692.4,2692.2,0.7548]
[1739675614195,1.3855688,2692.4,2692.3,0.08727761]
[1739675614400,1.3855688,2692.4,2692.3,0.84207761]
[1739675617323,0.00557103,2692.5,2692.4,3.71415]
[1739675617524,0.00557103,2692.5,2692.4,7.19146929]
[1739675617733,0.00557103,2692.5,2692.4,7.27821971]
[1739675634725,0.00557103,2692.5,2692.4,7.31535225]
[1739675635339,0.00557103,2692.5,2692.4,10.31535225]
[1739675635541,0.00557103,2692.5,2692.4,10.27821971]
[1739675639689,0.00314143,2692.8,2692.7,3.71374]
[1739675639889,0.00314143,2692.8,2692.7,7.09331048]
[1739675640187,0.00314143,2692.8,2692.7,7.17610942]
[1739675646487,0.00314143,2692.8,2692.7,8.93639136]
[1739675646804,0.00314143,2692.8,2692.7,17.2692599]
[1739675647476,0.00314143,2692.8,2692.7,17.8192599]
[1739675647678,1.43e-06,2692.8,2692.7,17.8192599]
[1739675653030,1.43e-06,2692.8,2692.7,18.00921674]
[1739675655148,1.43e-06,2692.8,2692.7,15.73606626]
[1739675655366,1.43e-06,2692.8,2692.7,15.99906626]
[1739675656346,1.43e-06,2692.8,2692.7,17.72221674]
[1739675657459,1.43e-06,2692.8,2692.7,15.99906626]
[1739675657625,1.43e-06,2692.8,2692.7,15.73606626]
[1739675658944,1.43e-06,2692.8,2692.7,17.45921674]
[1739675659852,1.43e-06,2692.8,2692.7,15.73606626]
[1739675661153,1.43e-06,2692.8,2692.7,15.54610942]
[1739675662330,1.43e-06,2692.8,2692.7,17.2692599]
[1739675662527,1.43e-06,2692.8,2692.7,15.54610942]
[1739675669969,1.43e-06,2692.8,2692.7,15.73521079]
[1739675676293,1.43e-06,2692.8,2692.7,11.71550942]
[1739675676579,1.43e-06,2692.8,2692.7,14.71550942]
[1739675677624,1.43e-06,2692.8,2692.7,10.88968942]
[1739675678607,0.80080143,2692.8,2692.7,9.16653894]
[1739675679590,0.80080143,2692.8,2692.7,3.79653894]
[1739675684508,0.80080143,2692.8,2692.7,0.08279894]
[1739675685030,0.80080143,2692.8,2692.5,5.43716048]
[1739675685233,0.80080143,2692.8,2692.6,0.07991342]
[1739675687038,0.80080143,2692.8,2692.6,3.79371342]
[1739675691313,0.80080143,2692.8,2692.7,3.71374]
[1739675691517,0.80080143,2692.8,2692.7,3.79384295]
[1739675692744,0.80080143,2692.8,2692.7,5.51699343]
[1739675692954,1.43e-06,2692.8,2692.7,6.44007277]
[1739675693646,1.43e-06,2692.8,2692.7,6.47720514]
[1739675693838,1.43e-06,2692.8,2692.7,7.26627277]
[1739675694928,1.43e-06,2692.8,2692.7,9.25242325]
[1739675695328,1.43e-06,2692.8,2692.7,12.25242325]
[1739675696429,1.43e-06,2692.8,2692.7,13.00353]
[1739675696836,1.43e-06,2692.8,2692.7,27.82353]
[1739675699862,9.78e-06,2693.1,2693.0,3.71333]
[1739675700161,9.78e-06,2693.1,2693.0,7.36035948]
[1739675700366,9.78e-06,2693.1,2693.0,12.80996073]
[1739675704969,9.78e-06,2693.1,2693.0,13.07296073]
[1739675705273,9.78e-06,2693.1,2693.0,12.24676073]
[1739675709692,9.78e-06,2693.1,2693.0,14.0711632]
[1739675725188,9.78e-06,2693.1,2693.0,14.8273632]
[1739675727091,9.78e-06,2693.1,2693.0,17.8273632]
[1739675731693,9.78e-06,2693.1,2693.0,15.99953804]
[1739675732214,9.78e-06,2693.1,2693.0,16.54953804]
[1739675732372,8.94e-06,2693.4,2693.3,6.18883779]
[1739675732560,8.94e-06,2693.4,2693.3,12.88614202]
[1739675732759,8.94e-06,2693.4,2693.3,12.92506814]
[1739675732990,8.94e-06,2693.4,2693.3,15.92506814]
[1739675734288,8.94e-06,2693.4,2693.3,17.64479593]
[1739675736004,8.94e-06,2693.4,2693.3,15.92506814]
[1739675736815,8.94e-06,2693.4,2693.3,17.64479593]
[1739675738115,8.94e-06,2693.4,2693.3,18.19479593]
[1739675738398,7.48e-06,2693.7,2693.6,11.46215558]
[1739675738578,7.48e-06,2693.7,2693.6,12.97963314]
[1739675738773,7.48e-06,2693.7,2693.6,13.05540049]
[1739675741970,7.48e-06,2693.7,2693.6,18.42540049]
[1739675743202,7.48e-06,2693.7,2693.6,27.32540049]
[1739675743402,7.48e-06,2693.7,2693.6,35.65440049]
[1739675744206,7.48e-06,2693.7,2693.6,35.84227774]
[1739675745368,7.48e-06,2693.7,2693.6,36.04227774]
[1739675746072,6.57e-06,2694.0,2693.9,3.71209]
[1739675746269,6.57e-06,2694.0,2693.9,15.93524779]
[1739675746595,6.57e-06,2694.0,2693.9,16.01049372]
[1739675750910,6.57e-06,2694.0,2693.9,16.76660566]
[1739675753717,6.57e-06,2694.0,2693.9,15.67560566]
[1739675753882,0.80350657,2694.0,2693.9,10.87706372]
[1739675754598,0.80350657,2694.0,2693.9,5.50706372]
[1739675754910,0.80350657,2694.0,2693.9,1.79497372]
[1739675755104,0.80350657,2694.0,2693.9,0.07524593]
[1739675755619,0.80350657,2694.0,2693.7,6.71226]
[1739675755826,0.80350657,2694.0,2693.9,0.07194212]
[1739675756282,0.80350657,2694.0,2693.9,3.78403212]
[1739675758440,0.80350657,2694.0,2693.9,4.88834964]
[1739675760023,0.80350657,2694.0,2693.9,0.07194212]
[1739675761098,0.80350657,2694.0,2693.7,3.71229]
[1739675761305,0.80350657,2694.0,2693.9,0.07209168]
[1739675761491,0.80350657,2694.0,2693.7,3.71229]
[1739675761691,0.80350657,2694.0,2693.9,0.07209168]
[1739675761927,0.80350657,2694.0,2693.7,3.71229]
[1739675762125,0.80350657,2694.0,2693.9,0.07209168]
[1739675762421,0.80350657,2694.0,2693.7,3.71229]
[1739675762627,0.80350657,2694.0,2693.9,0.07165386]
[1739675762829,0.80350657,2694.0,2693.8,0.07171774]
[1739675763127,0.80350657,2694.0,2693.9,0.07165386]
[1739675763310,0.80350657,2694.0,2693.7,3.71229]
[1739675763636,0.80350657,2694.0,2693.9,0.07165386]
[1739675763794,0.80350657,2694.0,2693.8,0.07171774]
[1739675763997,0.80350657,2694.0,2693.9,0.07165386]
[1739675764328,0.80350657,2694.0,2693.7,3.71229]
[1739675764529,0.80350657,2694.0,2693.9,0.07165386]
[1739675764735,0.80350657,2694.0,2693.7,3.71229]
[1739675764895,0.80350657,2694.0,2693.9,0.07165386]
[1739675765096,0.80350657,2694.0,2693.7,3.71229]
[1739675765325,0.80350657,2694.0,2693.9,0.07165386]
[1739675765495,0.80350657,2694.0,2693.7,3.71229]
[1739675765691,0.80350657,2694.0,2693.9,0.07269344]
[1739675765923,0.80350657,2694.0,2693.8,3.78412113]
[1739675766106,0.80350657,2694.0,2693.9,3.78447272]
[1739675767209,6.57e-06,2694.0,2693.9,7.92595049]
[1739675767421,6.57e-06,2694.0,2693.9,12.2383674]
[1739675767608,6.57e-06,2694.0,2693.9,14.0614343]
[1739675770446,6.57e-06,2694.0,2693.9,14.7872126]
[1739675774316,6.57e-06,2694.0,2693.9,13.9846126]
[1739675774525,6.57e-06,2694.0,2693.9,14.2476126]
[1739675774733,6.57e-06,2694.0,2693.9,8.8776126]
[1739675781987,6.57e-06,2694.0,2693.9,8.6146126]
[1739675796818,0.78730657,2694.0,2693.9,7.51025102]
[1739675797684,0.78730657,2694.0,2693.9,0.07238272]
[1739675798036,6.57e-06,2694.0,2693.9,5.4320197]
[1739675798319,6.57e-06,2694.0,2693.9,5.49913608]
[1739675799260,6.57e-06,2694.0,2693.9,1.78704608]
[1739675799466,0.78730657,2694.0,2693.9,5.49913608]
[1739675800173,0.78730657,2694.0,2693.9,0.06711638]
[1739675800911,0.78730657,2694.0,2693.9,0.06714284]
[1739675801108,0.78730657,2694.0,2693.7,5.4322097]
[1739675801397,0.78730657,2694.0,2693.8,0.06720674]
[1739675801582,0.78730657,2694.0,2693.7,3.71228]
[1739675801787,0.78730657,2694.0,2693.9,0.06714284]
[1739675801989,0.78730657,2694.0,2693.8,3.77929674]
[1739675802208,0.78730657,2694.0,2693.9,0.06714284]
[1739675803881,0.78730657,2694.0,2693.6,6.71799875]
[1739675804077,1.23722223,2694.0,2693.7,3.71235]
[1739675804304,1.23722223,2694.0,2693.7,3.77981478]
[1739675806922,0.78730657,2694.0,2693.7,3.77974478]
[1739675807993,0.78730657,2694.0,2693.7,0.06746478]
[1739675808392,3.71197657,2694.0,2693.7,0.06746478]
[1739675808623,0.7849,2693.9,2693.7,0.06746478]
[1739675809015,3.71222,2693.8,2693.7,0.06746478]
[1739675809218,4.49712,2693.8,2693.7,0.06746478]
[1739675815433,0.7849,2693.8,2693.7,0.06746478]
[1739675815631,0.78490657,2694.0,2693.7,3.61433465]
[1739675815805,0.78490657,2694.0,2693.9,3.71209]
[1739675816010,6.57e-06,2694.0,2693.9,3.71209]
[1739675816209,6.57e-06,2694.0,2693.9,3.77490106]
[1739675816431,6.57e-06,2694.0,2693.9,0.06281106]
[1739675816796,6.57e-06,2694.0,2693.9,3.77490106]
[1739675817127,6.57e-06,2694.0,2693.9,0.86831189]
[1739675817535,6.57e-06,2694.0,2693.9,4.58040189]
[1739675818801,6.57e-06,2694.0,2693.9,0.86831189]
[1739675820047,6.57e-06,2694.0,2693.9,5.36430189]
[1739675820210,6.57e-06,2694.0,2693.9,5.40141716]
[1739675820415,6.57e-06,2694.0,2693.9,5.40141388]
[1739675820626,6.57e-06,2694.0,2693.9,5.36430189]
[1739675827392,6.57e-06,2694.0,2693.9,4.58040189]
[1739675828519,0.79220657,2694.0,2693.9,0.06281106]
[1739675828814,0.79220657,2694.0,2693.6,3.71796875]
[1739675829139,0.79220657,2694.0,2693.9,0.06269074]
[1739675829313,0.79220657,2694.0,2693.6,3.71795875]
[1739675829498,0.79220657,2694.0,2693.9,0.06269074]
[1739675829834,0.7922,2693.9,2693.6,0.00556875]
[1739675830521,0.7922,2693.8,2693.6,0.00556875]
[1739675831817,4.50451,2693.8,2693.6,0.00556875]
[1739675832016,0.7922,2693.8,2693.6,0.00556875]
[1739675832616,0.7922,2693.8,2693.7,0.06305168]
[1739675832915,1.61383966,2693.8,2693.7,0.06305168]
[1739675833117,5.32605966,2693.8,2693.7,0.06305168]
[1739675834322,5.32605966,2693.8,2693.7,0.06305168]
[1739675834725,1.61383966,2693.8,2693.7,0.06305168]
[1739675836024,5.32605966,2693.8,2693.7,0.06305168]
[1739675836619,0.7922,2693.8,2693.7,0.06305168]
[1739675838722,4.50442,2693.8,2693.7,0.06305168]
[1739675839821,0.7922,2693.8,2693.7,0.06305168]
[1739675840245,4.50442,2693.8,2693.7,0.06305168]
[1739675840449,0.7922,2693.8,2693.7,0.06305168]
[1739675843528,6.57e-06,2694.0,2693.8,3.71211]
[1739675843826,6.57e-06,2694.0,2693.9,3.77526615]
[1739675848898,6.57e-06,2694.0,2693.9,3.81238502]
[1739675849332,6.57e-06,2694.0,2693.9,4.62648502]
[1739675849934,6.57e-06,2694.0,2693.9,4.58936615]
[1739675855556,6.57e-06,2694.0,2693.9,3.77526615]
[1739675856112,6.57e-06,2694.0,2693.9,5.46201031]
[1739675862549,0.82350657,2694.0,2693.9,0.06317615]
[1739675862854,0.82350657,2694.0,2693.6,0.00556875]
[1739675863028,0.82350657,2694.0,2693.9,0.06194807]
[1739675863231,0.82350657,2694.0,2693.6,0.00556875]
[1739675863232,4.5356,2693.9,2693.6,0.00556875]
[1739675863523,0.8235,2693.7,2693.6,0.00556875]
[1739675870036,4.53586,2693.7,2693.6,0.00556875]
[1739675870283,4.53046,2693.7,2693.6,0.00556875]
[1739675872371,9.81046,2693.7,2693.6,0.00556875]
[1739675880970,5.28,2693.7,2693.6,0.00556875]
[1739675881337,3.71224,2693.8,2693.6,0.06467235]
[1739675881659,0.8181,2693.9,2693.7,0.05899962]
[1739675881863,0.8181,2693.9,2693.6,0.00556875]
[1739675882167,4.53025,2693.9,2693.8,0.05893571]
[1739675882842,6.57e-06,2694.0,2693.6,3.71797875]
[1739675883144,6.57e-06,2694.0,2693.8,0.05893571]
[1739675883357,6.57e-06,2694.0,2693.7,0.4306413]
[1739675883578,6.57e-06,2694.0,2693.9,0.0587156]
[1739675883783,6.57e-06,2694.0,2693.8,0.05877951]
[1739675883984,6.57e-06,2694.0,2693.9,0.0587156]
[1739675884302,6.57e-06,2694.0,2693.6,3.71797875]
[1739675884473,6.57e-06,2694.0,2693.9,0.0587156]
[1739675884678,6.57e-06,2694.0,2693.6,4.53686763]
[1739675884869,6.57e-06,2694.0,2693.9,0.0587156]
[1739675885069,6.57e-06,2694.0,2693.6,4.53686763]
[1739675885275,6.57e-06,2694.0,2693.9,0.0587156]
[1739675885475,6.57e-06,2694.0,2693.6,4.53686763]
[1739675885663,6.57e-06,2694.0,2693.9,0.0587156]
[1739675885875,6.57e-06,2694.0,2693.6,3.71797875]
[1739675886100,6.57e-06,2694.0,2693.9,0.0587156]
[1739675886291,6.57e-06,2694.0,2693.6,0.00556875]
[1739675886501,6.57e-06,2694.0,2693.9,0.0587156]
[1739675886697,6.57e-06,2694.0,2693.6,0.00556875]
[1739675886899,6.57e-06,2694.0,2693.9,0.0587156]
[1739675887196,6.57e-06,2694.0,2693.6,0.00556875]
[1739675887366,6.57e-06,2694.0,2693.9,0.0587156]
[1739675887566,6.57e-06,2694.0,2693.6,3.71806875]
[1739675887794,6.57e-06,2694.0,2693.9,0.0587156]
[1739675888099,6.57e-06,2694.0,2693.9,0.88917922]
[1739675888895,6.57e-06,2694.0,2693.9,4.60126922]
[1739675889404,6.57e-06,2694.0,2693.9,5.43261014]
[1739675889614,6.57e-06,2694.0,2693.9,5.46972854]
[1739675890400,6.57e-06,2694.0,2693.9,5.43261014]
[1739675891281,6.57e-06,2694.0,2693.9,5.46972749]
[1739675891606,6.57e-06,2694.0,2693.9,5.43261014]
[1739675901923,6.57e-06,2694.0,2693.9,0.88917922]
[1739675902078,6.57e-06,2694.0,2693.9,0.05867922]
[1739675902431,6.57e-06,2694.0,2693.8,3.71217]
[1739675902583,6.57e-06,2694.0,2693.9,0.05808312]
[1739675902782,6.57e-06,2694.0,2693.6,0.79996875]
[1739675903106,6.57e-06,2694.0,2693.7,3.77056093]
[1739675904391,0.8092,2693.9,2693.7,0.05821093]
[1739675904597,3.71222,2693.8,2693.7,0.05821093]
[1739675904803,4.52142,2693.8,2693.7,0.05821093]
[1739675905005,5.34477266,2693.8,2693.7,0.05821093]
[1739675906806,5.34477266,2693.8,2693.6,0.00556875]
[1739675907011,3.71236,2693.7,2693.6,0.00556875]
[1739675908123,3.71236,2693.7,2693.6,0.06376608]
[1739675908795,4.52156,2693.7,2693.6,0.00556875]
[1739675909001,5.34635327,2693.7,2693.6,0.00556875]
[1739675909198,5.89635327,2693.7,2693.6,0.00556875]
[1739675909598,11.17635327,2693.7,2693.6,0.00556875]
[1739675915222,14.17635327,2693.7,2693.6,0.00556875]
[1739675915760,11.17635327,2693.7,2693.6,0.00556875]
[1739675917396,16.40535327,2693.7,2693.6,8.75e-06]
[1739675917600,16.60535327,2693.7,2693.6,8.75e-06]
[1739675920004,14.37635327,2693.7,2693.6,8.75e-06]
[1739675924720,14.44035327,2693.7,2693.6,8.75e-06]
[1739675925044,13.89035327,2693.7,2693.6,8.75e-06]
[1739675925605,10.62635327,2693.7,2693.6,8.75e-06]
[1739675926040,14.17635327,2693.7,2693.6,8.75e-06]
[1739675929048,13.62635327,2693.7,2693.6,8.75e-06]
[1739675929229,11.99236,2693.7,2693.6,8.75e-06]
[1739675929950,11.99236,2693.7,2693.6,0.05948488]
[1739675932719,11.99236,2693.7,2693.6,8.75e-06]
[1739675933050,11.99236,2693.7,2693.6,0.05948488]
[1739675934558,11.99236,2693.7,2693.6,8.75e-06]
[1739675934755,5.28000657,2694.0,2693.6,0.05948488]
[1739675934957,5.28000657,2694.0,2693.7,0.7569]
[1739675935123,5.28000657,2694.0,2693.7,0.81622288]
[1739675937558,8.99198657,2694.0,2693.7,0.81622288]
[1739675938060,3.71198657,2694.0,2693.7,0.81622288]
[1739675939022,3.71217,2693.9,2693.7,0.81622288]
[1739675939226,3.71222,2693.8,2693.7,0.05932288]
[1739675941331,3.71217,2693.9,2693.7,0.05932288]
[1739675942734,6.57e-06,2694.0,2693.7,0.05932288]
[1739675945564,3.71198657,2694.0,2693.7,0.05932288]
[1739675945952,3.71211,2693.9,2693.7,0.05932288]
[1739675947336,0.7509,2693.8,2693.7,0.05932288]
[1739675947538,4.46312,2693.8,2693.7,0.05932288]
[1739675947767,4.46312,2693.8,2693.6,8.75e-06]
[1739675947768,4.26236,2693.7,2693.6,8.75e-06]
[1739675947974,5.01326,2693.7,2693.6,8.75e-06]
[1739675949872,10.29326,2693.7,2693.6,8.75e-06]
[1739675950080,11.53679377,2693.7,2693.6,8.75e-06]
[1739675951453,10.78589377,2693.7,2693.6,8.75e-06]
[1739675952281,10.78589377,2693.7,2693.6,0.05938872]
[1739675962469,10.78589377,2693.7,2693.6,8.75e-06]
[1739675962870,10.78589377,2693.7,2693.6,0.05928058]
[1739675964104,10.78589377,2693.7,2693.6,8.75e-06]
[1739675964407,11.53729377,2693.7,2693.6,8.75e-06]
[1739675971826,14.53729377,2693.7,2693.6,8.75e-06]
[1739675972384,16.76629377,2693.7,2693.6,8.75e-06]
[1739675973318,17.13779377,2693.7,2693.6,8.75e-06]
[1739675973523,16.76629377,2693.7,2693.6,8.75e-06]
[1739675975215,14.53729377,2693.7,2693.6,8.75e-06]
[1739675994052,5.94177,2693.4,2693.3,8.12e-06]
[1739675994208,5.94177,2693.4,2693.0,0.00556999]
[1739675994209,8.03219,2693.1,2693.0,0.00556999]
[1739675994397,8.29519,2693.1,2693.0,0.00556999]
[1739675996411,9.03405172,2693.1,2693.0,0.00556999]
[1739676000455,14.81446512,2693.1,2693.0,9.99e-06]
[1739676000653,16.05799889,2693.1,2693.0,9.99e-06]
[1739676002455,16.24287517,2693.1,2693.0,9.99e-06]
[1739676003425,21.52287517,2693.1,2693.0,9.99e-06]
[1739676008495,14.97346177,2693.1,2693.0,9.99e-06]
[1739676009741,14.6782558,2693.1,2693.0,9.99e-06]
[1739676015677,16.4001294,2693.1,2693.0,9.99e-06]
[1739676017300,16.21525312,2693.1,2693.0,9.99e-06]
[1739676017642,15.95225312,2693.1,2693.0,9.99e-06]
[1739676017843,12.24798403,2693.1,2693.0,9.99e-06]
[1739676020275,13.96985763,2693.1,2693.0,9.99e-06]
[1739676024480,14.73775763,2693.1,2693.0,9.99e-06]
[1739676026185,16.96775763,2693.1,2693.0,9.99e-06]
[1739676036810,17.23075763,2693.1,2693.0,9.99e-06]
[1739676042625,21.13875763,2693.1,2693.0,9.99e-06]
[1739676059229,5.9436,2692.8,2692.7,6e-07]
[1739676059417,17.3120736,2692.8,2692.7,6e-07]
[1739676063943,15.0366,2692.8,2692.7,6e-07]
[1739676064241,14.4866,2692.8,2692.7,6e-07]
[1739676064607,15.0366,2692.8,2692.7,6e-07]
[1739676064807,14.7736,2692.8,2692.7,6e-07]
[1739676065009,15.0366,2692.8,2692.7,6e-07]
[1739676066154,16.7584736,2692.8,2692.7,6e-07]
[1739676072814,20.6664736,2692.8,2692.7,6e-07]
[1739676073014,16.7584736,2692.8,2692.7,6e-07]
[1739676074058,16.4954736,2692.8,2692.7,6e-07]
[1739676074347,16.7584736,2692.8,2692.7,6e-07]
[1739676074860,17.5463736,2692.8,2692.7,6e-07]
[1739676075513,19.2682472,2692.8,2692.7,6e-07]
[1739676076254,19.2682472,2692.8,2692.4,0.00557123]
[1739676076255,7.28192,2692.5,2692.4,1.83e-06]
[1739676076448,9.0037936,2692.5,2692.4,1.83e-06]
[1739676077148,17.4837936,2692.5,2692.4,1.83e-06]
[1739676077318,21.7632936,2692.5,2692.4,1.83e-06]
[1739676080055,17.8552936,2692.5,2692.4,1.83e-06]
[1739676080420,17.9552936,2692.5,2692.4,1.83e-06]
[1739676082158,18.14377194,2692.5,2692.4,1.83e-06]
[1739676085259,22.05177194,2692.5,2692.4,1.83e-06]
[1739676088156,0.7777,2692.2,2691.8,6.15e-06]
[1739676088359,7.6667136,2691.9,2691.8,6.15e-06]
[1739676088657,17.5374136,2691.9,2691.8,6.15e-06]
[1739676088855,15.81554,2691.9,2691.8,6.15e-06]
[1739676092444,21.1828336,2691.6,2691.5,9.25e-06]
[1739676096408,21.5543336,2691.6,2691.5,9.25e-06]
[1739676098292,17.1316336,2691.6,2691.5,9.25e-06]
[1739676098584,16.76645669,2691.6,2691.5,9.25e-06]
[1739676098730,17.31645669,2691.6,2691.5,9.25e-06]
[1739676099036,17.1316336,2691.6,2691.5,9.25e-06]
[1739676099686,17.9577336,2691.6,2691.5,9.25e-06]
[1739676100045,21.8657336,2691.6,2691.5,9.25e-06]
[1739676100258,16.8686336,2691.6,2691.5,9.25e-06]
[1739676100465,17.1316336,2691.6,2691.5,9.25e-06]
[1739676101271,17.31435642,2691.6,2691.5,9.25e-06]
[1739676107653,17.31435642,2691.6,2691.5,0.82560925]
[1739676108173,17.31435642,2691.6,2691.5,9.25e-06]
[1739676108557,17.1316336,2691.6,2691.5,9.25e-06]
[1739676113792,17.1316336,2691.6,2691.3,9.25e-06]
[1739676113793,5.94553,2691.4,2691.3,9.25e-06]
[1739676114082,11.2174036,2691.4,2691.3,9.25e-06]
[1739676114661,9.49567,2691.3,2691.2,2.97e-06]
[1739676114861,10.25077,2691.3,2691.2,2.97e-06]
[1739676115263,10.25077,2691.3,2690.0,1.7274498]
[1739676115264,0.7551,2691.2,2690.0,0.0055762]
[1739676115467,3.71733,2690.1,2690.0,0.0055762]
[1739676115662,9.2552036,2690.1,2690.0,0.0055762]
[1739676115892,7.53333,2690.1,2690.0,0.0055762]
[1739676116066,7.53333,2690.1,2690.0,0.8023762]
[1739676116479,7.26733,2690.1,2690.0,0.8023762]
[1739676116819,6.71733,2690.1,2690.0,0.8023762]
[1739676117012,6.71733,2690.1,2690.0,0.88952534]
[1739676117763,6.71733,2690.1,2690.0,0.8023762]
[1739676119486,6.71733,2690.1,2690.0,0.88952534]
[1739676119689,6.71733,2690.1,2690.0,0.8023762]
[1739676120277,6.71733,2690.1,2690.0,0.88952534]
[1739676121410,6.71733,2690.1,2690.0,0.8023762]
[1739676121902,6.71733,2690.1,2690.0,0.88952534]
[1739676122100,6.71733,2690.1,2690.0,0.8023762]
[1739676123070,6.71733,2690.1,2690.0,0.88952534]
[1739676125175,11.99733,2690.1,2690.0,0.88952534]
[1739676125517,11.99733,2690.1,2690.0,0.8023762]
[1739676125906,11.99733,2690.1,2690.0,0.0055762]
[1739676127212,3.71719,2690.2,2690.0,0.7955762]
[1739676127374,0.00557537,2690.4,2690.0,0.7955762]
[1739676127723,0.00557537,2690.4,2690.2,0.79]
[1739676128225,0.00557537,2690.4,2690.3,0.87740007]
[1739676128779,3.72248537,2690.4,2690.3,0.87740007]
[1739676130527,4.27248537,2690.4,2690.3,0.87740007]
[1739676130727,5.59941191,2690.4,2690.1,0.79]
[1739676131031,3.71719,2690.2,2690.1,0.79]
[1739676132694,3.71719,2690.2,2690.1,0.87753195]
[1739676133982,3.71719,2690.2,2690.1,0.08753195]
[1739676140040,9.00249537,2690.4,2690.2,0.7507]
[1739676140569,9.00249537,2690.4,2690.3,0.08740007]
[1739676141023,5.28557537,2690.4,2690.2,0.7507]
[1739676141356,5.28557537,2690.4,2690.3,0.08740007]
[1739676141629,5.28557537,2690.4,2690.3,0.83810007]
[1739676141794,5.28557537,2690.4,2690.3,0.7507]
[1739676141992,5.28557537,2690.4,2690.3,0.83868855]